fUSD/lending_fUSD_20240222
["ID","MTS","AMOUNT","RATE_DAILY","PERIOD"]
[314826282,1708571468559,-500.0,0.0003589,2]
[314826283,1708571468569,-500.0,0.0003589,2]
[314826284,1708571468578,-500.0,0.0003589,2]
[314826285,1708571468588,-500.0,0.0003589,2]
[314826286,1708571468598,-518.0,0.0003589,2]
[314826287,1708571468612,-1428.38,0.0003589,2]
[314826288,1708571468621,-500.0,0.0003589,2]
[314826289,1708571468631,-526.06,0.0003589,2]
[314826290,1708571468640,-500.0,0.0003589,2]
[314826291,1708571468651,-507.90547658,0.0003589,2]
[314826292,1708571468660,-1006.8,0.0003589,2]
[314826293,1708571468669,-500.0,0.0003589,2]
[314826294,1708571468679,-504.2406197,0.0003589,2]
[314826295,1708571468689,-500.0,0.0003589,2]
[314826296,1708571468699,-504.77,0.0003589,2]
[314826297,1708571468708,-507.66548004,0.0003589,2]
[314826298,1708571468718,-500.0,0.0003589,2]
[314826299,1708571468727,-500.0,0.0003589,2]
[314826300,1708571468736,-500.0,0.0003589,2]
[314826301,1708571468746,-256.35720392,0.0003589,2]
[314826302,1708571468755,-507.77110263,0.0003589,2]
[314826303,1708571468764,-500.0,0.0003589,2]
[314826304,1708571468774,-631.32,0.0003589,2]
[314826305,1708571468783,-500.0,0.0003589,2]
[314826306,1708571468793,-500.0,0.0003589,2]
[314826307,1708571468803,-1180.83,0.0003589,2]
[314826308,1708571468812,-500.0,0.0003589,2]
[314826309,1708571468821,-500.0,0.0003589,2]
[314826310,1708571468831,-500.0,0.0003589,2]
[314826311,1708571468841,-687.65,0.0003589,2]
[314826312,1708571468850,-500.0,0.0003589,2]
[314826313,1708571468859,-1392.3,0.0003589,2]
[314826314,1708571468868,-519.17490341,0.0003589,2]
[314826315,1708571468878,-500.0,0.0003589,2]
[314826316,1708571468887,-500.0,0.0003589,2]
[314826317,1708571468897,-500.0,0.0003589,2]
[314826318,1708571468907,-500.0,0.0003589,2]
[314826319,1708571468916,-729.71,0.0003589,2]
[314826320,1708571468926,-500.0,0.0003589,2]
[314826321,1708571468936,-779.53,0.0003589,2]
[314826322,1708571468946,-507.31925109,0.0003589,2]
[314826323,1708571468956,-533.99,0.0003589,2]
[314826324,1708571468966,-500.0,0.0003589,2]
[314826325,1708571468975,-500.0,0.0003589,2]
[314826326,1708571468985,-500.0,0.0003589,2]
[314826327,1708571468994,-505.35322885,0.0003589,2]
[314826328,1708571469004,-500.0,0.0003589,2]
[314826329,1708571469014,-513.19581972,0.0003589,2]
[314826330,1708571469024,-500.0,0.0003589,2]
[314826331,1708571469034,-2169.96,0.0003589,2]
[314826332,1708571469043,-500.0,0.0003589,2]
[314826333,1708571469053,-500.0,0.0003589,2]
[314826334,1708571469063,-500.0,0.0003589,2]
[314826335,1708571469072,-500.0,0.0003589,2]
[314826336,1708571469082,-590.37,0.0003589,2]
[314826337,1708571469091,-500.0,0.0003589,2]
[314826338,1708571469101,-500.0,0.0003589,2]
[314826339,1708571469110,-1003.2,0.0003589,2]
[314826340,1708571469119,-630.48718269,0.0003589,2]
[314826341,1708571469129,-500.0,0.0003589,2]
[314826342,1708571469138,-500.0,0.0003589,2]
[314826343,1708571469147,-500.0,0.0003589,2]
[314826344,1708571469157,-500.0,0.0003589,2]
[314826345,1708571469166,-501.50500683,0.0003589,2]
[314826346,1708571469175,-500.0,0.0003589,2]
[314826347,1708571469185,-500.0,0.0003589,2]
[314826348,1708571469194,-500.0,0.0003589,2]
[314826349,1708571469204,-500.0,0.0003589,2]
[314826350,1708571469213,-500.0,0.0003589,2]
[314826351,1708571469223,-500.0,0.0003589,2]
[314826352,1708571469232,-505.0310339,0.0003589,2]
[314826353,1708571469242,-500.0,0.0003589,2]
[314826354,1708571469251,-501.96562911,0.0003589,2]
[314826355,1708571469260,-557.99299764,0.0003589,2]
[314826356,1708571469271,-508.67207957,0.0003589,2]
[314826357,1708571469281,-500.0,0.0003589,2]
[314826358,1708571469290,-504.36407626,0.0003589,2]
[314826359,1708571469300,-500.0,0.0003589,2]
[314826360,1708571469309,-500.0,0.0003589,2]
[314826361,1708571469320,-500.0,0.0003589,2]
[314826362,1708571469330,-500.0,0.0003589,2]
[314826363,1708571469340,-509.14262075,0.0003589,2]
[314826364,1708571469349,-500.0,0.0003589,2]
[314826365,1708571469361,-500.0,0.0003589,2]
[314826366,1708571469372,-500.0,0.0003589,2]
[314826367,1708571469381,-532.78,0.0003589,2]
[314826368,1708571469393,-500.0,0.0003589,2]
[314826369,1708571469403,-500.0,0.0003589,2]
[314826370,1708571469413,-897.85,0.0003589,2]
[314826371,1708571469423,-794.78,0.0003589,2]
[314826372,1708571469433,-503.914932,0.0003589,2]
[314826373,1708571469444,-500.0,0.0003589,2]
[314826374,1708571469454,-500.0,0.0003589,2]
[314826375,1708571469464,-506.98187155,0.0003589,2]
[314826376,1708571469474,-500.0,0.0003589,2]
[314826377,1708571469484,-602.81,0.0003589,2]
[314826378,1708571469494,-500.0,0.0003589,2]
[314826379,1708571469504,-500.0,0.0003589,2]
[314826380,1708571469513,-500.0,0.0003589,2]
[314826381,1708571469524,-500.0,0.0003589,2]
[314826382,1708571469533,-500.0,0.0003589,2]
[314826383,1708571469543,-500.0,0.0003589,2]
[314826384,1708571469553,-500.0,0.0003589,2]
[314826385,1708571469564,-500.0,0.0003589,2]
[314826386,1708571469573,-514.31406766,0.0003589,2]
[314826387,1708571469582,-500.0,0.0003589,2]
[314826388,1708571469592,-500.0,0.0003589,2]
[314826389,1708571469604,-500.0,0.0003589,2]
[314826390,1708571469614,-500.0,0.0003589,2]
[314826391,1708571469624,-661.35,0.0003589,2]
[314826392,1708571469633,-513.11546337,0.0003589,2]
[314826393,1708571469643,-507.2717919,0.0003589,2]
[314826394,1708571469652,-1000.0,0.0003589,7]
[314826395,1708571469661,-500.0,0.0003589,2]
[314826396,1708571469671,-500.0,0.0003589,2]
[314826397,1708571469680,-508.03,0.0003589,2]
[314826398,1708571469691,-500.0,0.0003589,2]
[314826399,1708571469701,-500.0,0.0003589,2]
[314826400,1708571469710,-500.0,0.0003589,2]
[314826401,1708571469719,-500.0,0.0003589,2]
[314826402,1708571469728,-500.0,0.0003589,2]
[314826403,1708571469737,-624.78186384,0.0003589,2]
[314826404,1708571469746,-747.96,0.0003589,2]
[314826405,1708571469755,-500.0,0.0003589,2]
[314826406,1708571469766,-500.0,0.0003589,2]
[314826407,1708571469775,-500.0,0.0003589,2]
[314826408,1708571469784,-500.0,0.0003589,2]
[314826409,1708571469793,-597.18,0.0003589,2]
[314826410,1708571469804,-500.0,0.0003589,2]
[314826411,1708571469813,-500.0,0.0003589,2]
[314826412,1708571469822,-993.12,0.0003589,2]
[314826413,1708571469831,-500.12961303,0.0003589,2]
[314826414,1708571469841,-500.0,0.0003589,2]
[314826415,1708571469850,-546.94,0.0003589,2]
[314826416,1708571469858,-500.0,0.0003589,2]
[314826417,1708571469868,-500.0,0.0003589,2]
[314826418,1708571469877,-500.0,0.0003589,2]
[314826419,1708571469886,-500.0,0.0003589,2]
[314826420,1708571469895,-664.3,0.0003589,2]
[314826421,1708571469904,-473.79118417,0.0003589,2]
[314826422,1708571469913,-507.84423372,0.0003589,2]
[314826423,1708571469923,-637.26,0.0003589,2]
[314826424,1708571469932,-500.0,0.0003589,2]
[314826425,1708571469942,-500.0,0.0003589,2]
[314826426,1708571469951,-579.05,0.0003589,2]
[314826427,1708571469961,-500.0,0.0003589,2]
[314826428,1708571469970,-500.0,0.0003589,2]
[314826429,1708571469980,-500.0,0.0003589,2]
[314826430,1708571469989,-500.0,0.0003589,2]
[314826431,1708571469998,-500.0,0.0003589,2]
[314826432,1708571470007,-1140.82,0.0003589,2]
[314826433,1708571470017,-500.0,0.0003589,2]
[314826434,1708571470026,-500.0,0.0003589,2]
[314826435,1708571470035,-178.07,0.0003589,2]
[314826436,1708571470045,-500.0,0.0003589,2]
[314826437,1708571470054,-825.66,0.0003589,2]
[314826438,1708571470064,-500.0,0.0003589,2]
[314826439,1708571470073,-634.35,0.0003589,2]
[314826440,1708571470082,-500.0,0.0003589,2]
[314826441,1708571470092,-612.06,0.0003589,2]
[314826442,1708571470101,-500.0,0.0003589,2]
[314826443,1708571470110,-507.80163801,0.0003589,2]
[314826444,1708571470120,-500.0,0.0003589,2]
[314826445,1708571470129,-500.0,0.0003589,2]
[314826446,1708571470138,-1000.0,0.0003589,7]
[314826447,1708571470147,-500.1617632,0.0003589,2]
[314826448,1708571470156,-1557.65,0.0003589,2]
[314826449,1708571470166,-500.0,0.0003589,2]
[314826450,1708571470175,-500.0,0.0003589,2]
[314826451,1708571470184,-500.0,0.0003589,2]
[314826452,1708571470193,-500.0,0.0003589,2]
[314826453,1708571470203,-500.0,0.0003589,2]
[314826454,1708571470213,-500.0,0.0003589,2]
[314826455,1708571470222,-500.0,0.0003589,2]
[314826456,1708571470231,-861.97,0.0003589,2]
[314826457,1708571470316,-543.5955453,0.0003589,2]
[314826458,1708571470325,-500.0,0.0003589,2]
[314826459,1708571470334,-500.0,0.0003589,2]
[314826460,1708571470343,-500.0,0.0003589,2]
[314826461,1708571470352,-503.91467274,0.0003589,2]
[314826462,1708571470362,-1000.0,0.0003589,7]
[314826463,1708571470371,-500.0,0.0003589,2]
[314826464,1708571470380,-549.38,0.0003589,2]
[314826465,1708571470389,-500.0,0.0003589,2]
[314826466,1708571470398,-500.0,0.0003589,2]
[314826467,1708571470409,-500.0,0.0003589,2]
[314826468,1708571470418,-559.65229446,0.0003589,2]
[314826469,1708571470428,-500.0,0.0003589,2]
[314826470,1708571470437,-619.07,0.0003589,2]
[314826471,1708571470446,-359.19999363,0.0003589,2]
[314826472,1708571470456,-500.0,0.0003589,2]
[314826473,1708571470466,-500.0,0.0003589,2]
[314826474,1708571470475,-504.18868608,0.0003589,2]
[314826475,1708571470485,-500.0,0.0003589,2]
[314826476,1708571470495,-500.0,0.0003589,2]
[314826477,1708571470504,-848.14,0.0003589,2]
[314826478,1708571470514,-500.0,0.0003589,2]
[314826479,1708571470524,-516.72108248,0.0003589,2]
[314826480,1708571470533,-914.66,0.0003589,2]
[314826481,1708571470543,-173.64773994,0.0003589,2]
[314826482,1708571470552,-500.0,0.0003589,2]
[314826483,1708571470562,-500.0,0.0003589,2]
[314826484,1708571470571,-500.0,0.0003589,2]
[314826485,1708571470582,-500.0,0.0003589,2]
[314826486,1708571470592,-500.0,0.0003589,2]
[314826487,1708571470604,-500.0,0.0003589,2]
[314826488,1708571470614,-708.05,0.0003589,2]
[314826489,1708571470623,-500.0,0.0003589,2]
[314826490,1708571470633,-500.0,0.0003589,2]
[314826491,1708571470642,-500.0,0.0003589,2]
[314826492,1708571470652,-500.0,0.0003589,2]
[314826493,1708571470661,-500.0,0.0003589,2]
[314826494,1708571470670,-500.0,0.0003589,2]
[314826495,1708571470679,-910.54,0.0003589,2]
[314826496,1708571470689,-500.0,0.0003589,2]
[314826497,1708571470698,-500.0,0.0003589,2]
[314826498,1708571470707,-1023.59,0.0003589,2]
[314826499,1708571470717,-515.76257013,0.0003589,2]
[314826500,1708571470726,-506.90188665,0.0003589,2]
[314826501,1708571470735,-500.0,0.0003589,2]
[314826502,1708571470744,-793.78,0.0003589,2]
[314826503,1708571470753,-500.0,0.0003589,2]
[314826504,1708571470762,-500.0,0.0003589,2]
[314826505,1708571470773,-577.54715044,0.0003589,2]
[314826506,1708571470782,-500.0,0.0003589,2]
[314826507,1708571470791,-507.83164819,0.0003589,2]
[314826508,1708571470800,-500.0,0.0003589,2]
[314826509,1708571470810,-748.23,0.0003589,2]
[314826510,1708571470819,-500.0,0.0003589,2]
[314826511,1708571470828,-500.0,0.0003589,2]
[314826512,1708571470837,-506.70385653,0.0003589,2]
[314826513,1708571470846,-500.0,0.0003589,2]
[314826514,1708571470855,-500.0,0.0003589,2]
[314826515,1708571470864,-500.0,0.0003589,2]
[314826516,1708571470874,-504.25073393,0.0003589,2]
[314826517,1708571470883,-500.0,0.0003589,2]
[314826518,1708571470892,-500.0,0.0003589,2]
[314826519,1708571470901,-500.0,0.0003589,2]
[314826520,1708571470910,-500.0,0.0003589,2]
[314826521,1708571470920,-500.0,0.0003589,2]
[314826522,1708571470929,-548.7,0.0003589,2]
[314826523,1708571470937,-515.93,0.0003589,2]
[314826524,1708571470945,-521.6,0.0003589,2]
[314826525,1708571470954,-500.0,0.0003589,2]
[314826526,1708571470964,-1492.93,0.0003589,2]
[314826527,1708571470973,-500.0,0.0003589,2]
[314826528,1708571470983,-500.0,0.0003589,2]
[314826529,1708571470993,-500.0,0.0003589,2]
[314826530,1708571471002,-500.0,0.0003589,2]
[314826531,1708571471012,-500.0,0.0003589,2]
[314826532,1708571471022,-500.0,0.0003589,2]
[314826533,1708571471031,-570.87,0.0003589,2]
[314826534,1708571471041,-500.0,0.0003589,2]
[314826535,1708571471050,-527.84,0.0003589,2]
[314826536,1708571471059,-500.0,0.0003589,2]
[314826537,1708571471068,-502.89295626,0.0003589,2]
[314826538,1708571471077,-550.65,0.0003589,2]
[314826539,1708571471086,-500.0,0.0003589,2]
[314826540,1708571471095,-507.60487577,0.0003589,2]
[314826541,1708571471104,-500.0,0.0003589,2]
[314826542,1708571471113,-500.0,0.0003589,2]
[314826543,1708571471122,-500.0,0.0003589,2]
[314826544,1708571471131,-398.55836324,0.0003589,2]
[314826545,1708571471140,-500.0,0.0003589,2]
[314826546,1708571471150,-500.0,0.0003589,2]
[314826547,1708571471159,-500.0,0.0003589,2]
[314826548,1708571471169,-500.0,0.0003589,2]
[314826549,1708571471178,-505.08992469,0.0003589,2]
[314826550,1708571471187,-500.0,0.0003589,2]
[314826551,1708571471197,-500.0,0.0003589,2]
[314826552,1708571471206,-500.0,0.0003589,2]
[314826553,1708571471215,-500.0,0.0003589,2]
[314826554,1708571471224,-998.09,0.0003589,2]
[314826555,1708571471233,-500.0,0.0003589,2]
[314826556,1708571471242,-1522.9,0.0003589,2]
[314826557,1708571471251,-500.0,0.0003589,2]
[314826558,1708571471260,-500.0,0.0003589,2]
[314826559,1708571471270,-500.0,0.0003589,2]
[314826560,1708571471279,-500.0,0.0003589,2]
[314826561,1708571471288,-500.0,0.0003589,2]
[314826562,1708571471298,-500.0,0.0003589,2]
[314826563,1708571471307,-755.57,0.0003589,2]
[314826564,1708571471316,-500.0,0.0003589,2]
[314826565,1708571471326,-500.0,0.0003589,2]
[314826566,1708571471335,-500.0,0.0003589,2]
[314826567,1708571471344,-500.0,0.0003589,2]
[314826568,1708571471353,-500.0,0.0003589,2]
[314826569,1708571471362,-712.79,0.0003589,2]
[314826570,1708571471371,-500.0,0.0003589,2]
[314826571,1708571471380,-500.0,0.0003589,2]
[314826572,1708571471389,-500.0,0.0003589,2]
[314826573,1708571471399,-505.22095577,0.0003589,2]
[314826574,1708571471408,-500.0,0.0003589,2]
[314826575,1708571471418,-537.75,0.0003589,2]
[314826576,1708571471427,-505.10348397,0.0003589,2]
[314826577,1708571471437,-500.0,0.0003589,2]
[314826578,1708571471446,-439.86403807,0.0003589,2]
[314826579,1708571471455,-500.0,0.0003589,2]
[314826580,1708571471464,-500.0,0.0003589,2]
[314826581,1708571471474,-660.33,0.0003589,2]
[314826582,1708571471484,-466.56419852,0.0003589,2]
[314826583,1708571471494,-514.3,0.0003589,2]
[314826584,1708571471503,-871.1,0.0003589,2]
[314826585,1708571471512,-859.65,0.0003589,2]
[314826586,1708571471522,-500.0,0.0003589,2]
[314826587,1708571471531,-500.0,0.0003589,2]
[314826588,1708571471540,-500.0,0.0003589,2]
[314826589,1708571471549,-500.0,0.0003589,2]
[314826590,1708571471559,-500.0,0.0003589,2]
[314826591,1708571471568,-500.0,0.0003589,2]
[314826592,1708571471578,-500.0,0.0003589,2]
[314826593,1708571471587,-500.0,0.0003589,2]
[314826594,1708571471596,-321.51948921,0.0003589,2]
[314826595,1708571471606,-500.0,0.0003589,2]
[314826596,1708571471618,-500.0,0.0003589,2]
[314826597,1708571471627,-585.92554518,0.0003589,2]
[314826598,1708571471637,-1030.56,0.0003589,2]
[314826599,1708571471646,-500.0,0.0003589,2]
[314826600,1708571471656,-794.87,0.0003589,2]
[314826601,1708571471665,-500.0,0.0003589,2]
[314826602,1708571471674,-840.11,0.0003589,2]
[314826603,1708571471684,-500.0,0.0003589,2]
[314826604,1708571471694,-500.0,0.0003589,2]
[314826605,1708571471704,-500.0,0.0003589,2]
[314826606,1708571471713,-711.79,0.0003589,2]
[314826607,1708571471723,-500.0,0.0003589,2]
[314826608,1708571471733,-500.0,0.0003589,2]
[314826609,1708571471742,-500.0,0.0003589,2]
[314826610,1708571471751,-500.0,0.0003589,2]
[314826611,1708571471760,-500.0,0.0003589,2]
[314826612,1708571471769,-176.7500648,0.0003589,2]
[314826613,1708571471778,-500.0,0.0003589,2]
[314826614,1708571471788,-500.0,0.0003589,2]
[314826615,1708571471797,-519.48508656,0.0003589,2]
[314826616,1708571471807,-500.0,0.0003589,2]
[314826617,1708571471816,-505.63806369,0.0003589,2]
[314826618,1708571471826,-1085.16,0.0003589,2]
[314826619,1708571471834,-500.0,0.0003589,2]
[314826620,1708571471844,-930.24,0.0003589,2]
[314826621,1708571471853,-1229.4,0.0003589,2]
[314826622,1708571471862,-500.0,0.0003589,2]
[314826623,1708571471871,-500.0,0.0003589,2]
[314826624,1708571471881,-500.0,0.0003589,2]
[314826625,1708571471890,-500.0,0.0003589,2]
[314826626,1708571471899,-641.26,0.0003589,2]
[314826627,1708571471909,-1254.24,0.0003589,2]
[314826628,1708571471918,-505.75171036,0.0003589,2]
[314826629,1708571471928,-500.0,0.0003589,2]
[314826630,1708571471938,-506.92311226,0.0003589,2]
[314826631,1708571471947,-500.0,0.0003589,2]
[314826632,1708571471955,-500.0,0.0003589,2]
[314826633,1708571471964,-708.18,0.0003589,2]
[314826634,1708571471974,-500.0,0.0003589,2]
[314826635,1708571471983,-500.0,0.0003589,2]
[314826636,1708571471991,-675.52,0.0003589,2]
[314826637,1708571472001,-663.36,0.0003589,2]
[314826638,1708571472011,-500.0,0.0003589,2]
[314826639,1708571472020,-1285.49,0.0003589,2]
[314826640,1708571472030,-500.0,0.0003589,2]
[314826641,1708571472039,-533.72,0.0003589,2]
[314826642,1708571472049,-500.0,0.0003589,2]
[314826643,1708571472059,-500.0,0.0003589,2]
[314826644,1708571472069,-500.0,0.0003589,2]
[314826645,1708571472078,-593.49948183,0.0003589,2]
[314826646,1708571472087,-453.97238823,0.0003589,2]
[314826647,1708571472097,-500.0,0.0003589,2]
[314826648,1708571472106,-500.0,0.0003589,2]
[314826649,1708571472115,-500.0,0.0003589,2]
[314826650,1708571472125,-500.0,0.0003589,2]
[314826651,1708571472134,-526.14595899,0.0003589,2]
[314826652,1708571472144,-500.0,0.0003589,2]
[314826653,1708571472153,-972.67,0.0003589,2]
[314826654,1708571472162,-1033.35,0.0003589,2]
[314826655,1708571472171,-686.87,0.0003589,2]
[314826656,1708571472181,-500.0,0.0003589,2]
[314826657,1708571472190,-500.0,0.0003589,2]
[314826658,1708571472200,-500.0,0.0003589,2]
[314826659,1708571472209,-500.0,0.0003589,2]
[314826660,1708571472219,-500.0,0.0003589,2]
[314826661,1708571472229,-500.0,0.0003589,2]
[314826662,1708571472238,-690.5,0.0003589,2]
[314826663,1708571472247,-500.0,0.0003589,2]
[314826664,1708571472257,-1210.72,0.0003589,2]
[314826665,1708571472267,-523.00566565,0.0003589,2]
[314826666,1708571472276,-500.0,0.0003589,2]
[314826667,1708571472286,-500.0,0.0003589,2]
[314826668,1708571472295,-500.0,0.0003589,2]
[314826669,1708571472304,-500.0,0.0003589,2]
[314826670,1708571472314,-500.0,0.0003589,2]
[314826671,1708571472323,-500.0,0.0003589,2]
[314826672,1708571472333,-500.0,0.0003589,2]
[314826673,1708571472342,-544.87195981,0.0003589,2]
[314826674,1708571472352,-500.0,0.0003589,2]
[314826675,1708571472361,-735.98,0.0003589,2]
[314826676,1708571472371,-500.0,0.0003589,2]
[314826677,1708571472380,-500.0,0.0003589,2]
[314826678,1708571472390,-500.0,0.0003589,2]
[314826679,1708571472399,-1505.51,0.0003589,2]
[314826680,1708571472409,-500.0,0.0003589,2]
[314826681,1708571472419,-507.89838842,0.0003589,14]
[314826682,1708571472428,-500.0,0.0003589,2]
[314826683,1708571472438,-500.0,0.0003589,2]
[314826684,1708571472448,-614.0,0.0003589,2]
[314826685,1708571472457,-1393.88,0.0003589,2]
[314826686,1708571472467,-402.38450143,0.0003589,2]
[314826687,1708571472476,-500.0,0.0003589,2]
[314826688,1708571472485,-556.51295122,0.0003589,2]
[314826689,1708571472495,-500.0,0.0003589,2]
[314826690,1708571472504,-500.0,0.0003589,2]
[314826691,1708571472514,-500.0,0.0003589,2]
[314826692,1708571472524,-500.0,0.0003589,2]
[314826693,1708571472533,-500.0,0.0003589,2]
[314826694,1708571472543,-500.0,0.0003589,2]
[314826695,1708571472552,-500.0,0.0003589,2]
[314826696,1708571472562,-471.52525046,0.0003589,2]
[314826697,1708571472571,-602.51,0.0003589,2]
[314826698,1708571472581,-880.15,0.0003589,2]
[314826699,1708571472591,-506.39700267,0.0003589,2]
[314826700,1708571472601,-500.0,0.0003589,2]
[314826701,1708571472615,-500.0,0.0003589,2]
[314826702,1708571472625,-970.4,0.0003589,2]
[314826703,1708571472634,-515.02,0.0003589,2]
[314826704,1708571472644,-500.0,0.0003589,2]
[314826705,1708571472654,-500.0,0.0003589,2]
[314826706,1708571472663,-500.0,0.0003589,2]
[314826707,1708571472673,-503.40094342,0.0003589,2]
[314826708,1708571472682,-500.0,0.0003589,2]
[314826709,1708571472692,-500.0,0.0003589,2]
[314826710,1708571472702,-500.0,0.0003589,2]
[314826711,1708571472711,-500.0,0.0003589,2]
[314826712,1708571472720,-500.0,0.0003589,2]
[314826713,1708571472730,-3077.14,0.0003589,2]
[314826714,1708571472740,-1740.36,0.0003589,2]
[314826715,1708571472749,-557.01543021,0.0003589,2]
[314826716,1708571472758,-504.05836854,0.0003589,2]
[314826717,1708571472768,-533.52,0.0003589,2]
[314826718,1708571472777,-500.0,0.0003589,2]
[314826719,1708571472788,-500.0,0.0003589,2]
[314826720,1708571472797,-609.83,0.0003589,2]
[314826721,1708571472807,-500.0,0.0003589,2]
[314826722,1708571472816,-500.0,0.0003589,2]
[314826723,1708571472825,-500.0,0.0003589,2]
[314826724,1708571472834,-500.0,0.0003589,2]
[314826725,1708571472844,-500.0,0.0003589,2]
[314826726,1708571472854,-500.0,0.0003589,2]
[314826727,1708571472863,-500.0,0.0003589,2]
[314826728,1708571472873,-827.66,0.0003589,2]
[314826729,1708571472882,-500.0,0.0003589,2]
[314826730,1708571472892,-503.96056653,0.0003589,2]
[314826731,1708571472901,-1488.99,0.0003589,2]
[314826732,1708571472911,-2318.43,0.0003589,2]
[314826733,1708571472920,-500.0,0.0003589,2]
[314826734,1708571472930,-2948.11,0.0003589,2]
[314826735,1708571472939,-500.0,0.0003589,2]
[314826736,1708571472949,-500.0,0.0003589,2]
[314826737,1708571472959,-500.0,0.0003589,2]
[314826738,1708571472968,-500.0,0.0003589,2]
[314826739,1708571472977,-500.0,0.0003589,2]
[314826740,1708571472987,-500.0,0.0003589,2]
[314826741,1708571472996,-500.0,0.0003589,2]
[314826742,1708571473006,-2491.28,0.0003589,2]
[314826743,1708571473015,-500.0,0.0003589,2]
[314826744,1708571473026,-500.0,0.0003589,2]
[314826745,1708571473035,-500.0,0.0003589,2]
[314826746,1708571473045,-500.0,0.0003589,2]
[314826747,1708571473054,-500.0,0.0003589,2]
[314826748,1708571473064,-500.0,0.0003589,2]
[314826749,1708571473074,-500.0,0.0003589,2]
[314826750,1708571473084,-500.0,0.0003589,2]
[314826751,1708571473094,-1249.14,0.0003589,2]
[314826752,1708571473104,-500.0,0.0003589,2]
[314826753,1708571473114,-500.0,0.0003589,2]
[314826754,1708571473123,-500.0,0.0003589,2]
[314826755,1708571473133,-500.0,0.0003589,2]
[314826756,1708571473143,-500.0,0.0003589,2]
[314826757,1708571473153,-500.0,0.0003589,2]
[314826758,1708571473163,-761.14,0.0003589,2]
[314826759,1708571473173,-8712.42,0.0003589,2]
[314826760,1708571473182,-5593.38,0.0003589,2]
[314826761,1708571473192,-1331.83,0.0003589,2]
[314826762,1708571473202,-1153.25,0.0003589,2]
[314826763,1708571473211,-500.0,0.0003589,2]
[314826764,1708571473221,-500.0,0.0003589,2]
[314826765,1708571473230,-500.0,0.0003589,2]
[314826766,1708571473240,-548.88040208,0.0003589,2]
[314826767,1708571473250,-500.0,0.0003589,2]
[314826768,1708571473260,-1825.02,0.0003589,2]
[314826769,1708571473269,-1481.34,0.0003589,2]
[314826770,1708571473279,-905.27,0.0003589,2]
[314826771,1708571473289,-500.0,0.0003589,2]
[314826772,1708571473299,-506.83646932,0.0003589,2]
[314826773,1708571473309,-500.0,0.0003589,2]
[314826774,1708571473318,-500.0,0.0003589,2]
[314826775,1708571473328,-500.0,0.0003589,2]
[314826776,1708571473337,-500.0,0.0003589,2]
[314826777,1708571473347,-521.99970766,0.0003589,2]
[314826778,1708571473357,-500.0,0.0003589,2]
[314826779,1708571473367,-500.0,0.0003589,2]
[314826780,1708571473377,-150.0,0.0003589,2]
[314826781,1708571473387,-534.68529035,0.0003589,2]